bitfinex/quotes_ETHUSD_20250425
["timestamp","ask_amount","ask_price","bid_price","bid_amount"]
[1745600833403,6.71317467,1806.8,1806.3,2.0148899]
[1745600833605,0.4831,1806.7,1805.9,0.7894]
[1745600833836,0.4831,1806.6,1806.1,5.53672449]
[1745600834125,0.60431578,1806.6,1805.9,6.32666235]
[1745600834309,0.4831,1806.4,1805.7,5.53781122]
[1745600834492,0.4831,1806.3,1805.6,5.53813998]
[1745600834698,6.23018146,1806.2,1805.6,5.53813998]
[1745600834905,6.23018146,1806.2,1805.7,5.53799481]
[1745600835846,6.23018146,1806.2,1805.9,5.53718686]
[1745600836200,6.23018146,1806.2,1805.7,5.53779619]
[1745600836404,6.23018146,1806.2,1805.8,5.53770612]
[1745600836942,6.23018146,1806.2,1805.8,5.53752963]
[1745600837153,6.23018146,1806.2,1805.9,5.53739674]
[1745600837311,6.23018146,1806.2,1805.7,0.55377962]
[1745600837505,6.23018146,1806.2,1805.9,5.53720146]
[1745600837726,6.23018146,1806.2,1806.0,5.53686755]
[1745600838036,6.23018146,1806.2,1806.1,5.53679198]
[1745600838226,6.23018146,1806.2,1806.0,5.53709856]
[1745600838424,6.23018146,1806.2,1806.0,5.53702049]
[1745600838621,6.23018146,1806.2,1806.0,5.53691762]
[1745600838827,6.23018146,1806.2,1806.0,5.53690272]
[1745600839254,0.12018146,1806.2,1806.1,5.53679198]
[1745600839829,0.12018146,1806.2,1806.0,6.90689299]
[1745600840025,0.12018146,1806.2,1806.0,6.09059299]
[1745600840249,0.12018146,1806.2,1806.1,5.53679198]
[1745600841242,0.12018146,1806.2,1806.0,5.53690272]
[1745600841431,0.12018146,1806.2,1806.1,5.53679198]
[1745600842075,0.12018146,1806.2,1806.0,6.09062864]
[1745600842370,0.12018146,1806.2,1806.1,5.53679198]
[1745600842933,6.11,1806.3,1806.2,5.53648543]
[1745600843670,6.5931,1806.5,1806.2,5.53648543]
[1745600843836,7.75221,1806.5,1806.0,5.53697486]
[1745600844157,3.0,1806.4,1806.0,5.53687349]
[1745600844343,3.0,1806.4,1805.9,11.07447897]
[1745600844550,3.0,1806.4,1805.9,5.5371942]
[1745600844725,3.0,1806.4,1805.9,11.07442193]
[1745600844927,4.075221,1806.4,1806.0,5.53706503]
[1745600845346,4.075221,1806.4,1806.0,11.0739414]
[1745600845549,4.075221,1806.4,1806.1,5.53675273]
[1745600846076,3.0,1806.4,1806.2,5.53644449]
[1745600846963,3.0,1806.4,1806.1,5.53661782]
[1745600847365,3.0,1806.4,1805.8,5.8143]
[1745600847531,3.0,1806.4,1806.1,5.53667469]
[1745600847737,3.0,1806.4,1806.0,5.53695234]
[1745600848046,4.075221,1806.4,1805.9,5.5372295]
[1745600848251,4.075221,1806.4,1806.0,5.53700496]
[1745600848771,4.075221,1806.4,1805.8,11.35192386]
[1745600848976,3.0,1806.4,1806.2,5.53632592]
[1745600849165,3.0,1806.4,1806.3,5.53617892]
[1745600849548,6.5931,1806.5,1806.3,5.53617892]
[1745600849755,6.11,1806.5,1806.3,5.53617892]
[1745600850267,6.11,1806.5,1806.3,5.53614837]
[1745600850685,6.11,1806.5,1806.4,5.53587245]
[1745600850846,6.11,1806.6,1806.5,5.53556601]
[1745600851043,6.11,1806.6,1806.5,6.64269061]
[1745600851574,6.11,1806.8,1806.6,11.0702012]
[1745600851776,6.11,1806.8,1806.6,5.53504748]
[1745600852187,6.11,1806.8,1806.4,5.53558554]
[1745600852491,6.11,1806.8,1806.5,5.5355091]
[1745600852708,6.11,1806.8,1806.6,5.53513244]
[1745600853211,6.11,1806.8,1806.6,5.53510785]
[1745600853978,6.11,1806.8,1806.5,5.53538635]
[1745600854672,6.11,1806.8,1806.6,5.53514826]
[1745600855097,6.11,1806.8,1806.5,5.53538635]
[1745600855288,6.11,1806.8,1806.5,11.07072207]
[1745600855489,6.11,1806.8,1806.6,5.53520308]
[1745600855907,6.11,1806.8,1806.6,11.07025196]
[1745600856212,6.11,1806.8,1806.7,5.53495322]
[1745600857001,6.6931,1806.9,1806.8,5.53464688]
[1745600857203,6.21,1806.9,1806.8,5.53464688]
[1745600857402,6.21,1806.9,1806.8,6.32604688]
[1745600857592,0.1,1806.9,1806.8,6.32604688]
[1745600862048,0.1,1806.9,1806.8,5.53464688]
[1745600864132,0.1,1806.9,1806.7,1.10700021]
[1745600864336,0.1,1806.9,1806.8,5.53464688]
[1745600868337,0.1,1806.9,1806.8,6.31374688]
[1745600870379,0.1,1806.9,1806.8,5.53464688]
[1745600870582,0.1,1806.9,1806.7,5.53477108]
[1745600870778,0.1,1806.9,1806.8,5.53464688]
[1745600870988,0.1,1806.9,1806.7,5.53477108]
[1745600871154,0.1,1806.9,1806.7,5.53473931]
[1745600871351,0.4831,1806.8,1806.3,5.53598121]
[1745600871676,0.4831,1806.8,1806.3,1.18887983]
[1745600871677,6.11,1806.7,1806.3,1.18887983]
[1745600871895,6.11,1806.7,1806.3,5.53617673]
[1745600872067,6.11,1806.7,1806.3,5.53595418]
[1745600872245,6.11,1806.7,1806.4,5.53583353]
[1745600874269,6.11,1806.7,1806.4,5.53568245]
[1745600876154,6.11,1806.7,1806.3,5.53598985]
[1745600876155,6.11,1806.7,1806.3,11.07194418]
[1745600876463,6.11,1806.7,1806.4,5.53572183]
[1745600876838,4.06226997,1806.6,1806.0,5.53698459]
[1745600877047,6.5931,1806.5,1806.0,5.53698459]
[1745600877349,6.5931,1806.5,1805.8,6.34501833]
[1745600877561,0.4831,1806.3,1805.9,5.53719492]
[1745600877767,0.4831,1806.3,1806.0,5.53700622]
[1745600878074,0.4831,1806.3,1805.7,6.09167043]
[1745600878248,0.4831,1806.3,1805.8,5.537576]
[1745600878455,0.4831,1806.3,1806.1,5.53676532]
[1745600878666,0.4831,1806.3,1806.0,5.53686871]
[1745600878844,0.4831,1806.3,1805.9,5.53726674]
[1745600879053,0.4831,1806.3,1806.0,5.53709054]
[1745600881185,0.4831,1806.3,1805.9,5.53718791]
[1745600881788,6.5931,1806.3,1805.9,5.53718791]
[1745600881989,3.0,1806.2,1805.9,5.53718791]
[1745600882489,3.0,1806.2,1805.9,11.07436942]
[1745600882713,3.0,1806.2,1805.9,5.53718151]
[1745600882889,3.95931,1806.2,1805.9,5.53738712]
[1745600883104,3.0,1806.2,1806.0,5.53689377]
[1745600884199,3.0,1806.2,1805.9,5.53738712]
[1745600884401,3.0,1806.2,1805.9,5.53718267]
[1745600884696,3.0,1806.2,1806.1,5.53679198]
[1745600884894,3.0,1806.2,1806.0,5.53697064]
[1745600885286,3.0,1806.2,1806.1,5.53679198]
[1745600885800,3.0,1806.2,1806.0,5.53697064]
[1745600886364,3.0,1806.2,1806.0,11.0738595]
[1745600886569,3.0,1806.2,1806.0,5.53688886]
[1745600887373,3.0,1806.2,1805.9,5.53721946]
[1745600887676,3.0,1806.2,1806.0,5.53704307]
[1745600889306,3.0,1806.2,1805.9,5.53721946]
[1745600889503,3.95931,1806.2,1805.7,6.11700224]
[1745600889686,3.95931,1806.2,1805.7,5.53783227]
[1745600889890,3.95931,1806.2,1805.8,5.53767047]
[1745600890906,0.95931,1806.2,1805.8,5.53767047]
[1745600891579,0.4831,1806.1,1805.7,5.53800271]
[1745600891774,6.5931,1806.1,1805.7,5.53800271]
[1745600891979,7.348341,1806.1,1805.7,5.53800271]
[1745600892595,6.5931,1806.1,1805.8,5.53760615]
[1745600893772,6.5931,1806.1,1805.7,6.30480271]
[1745600894014,6.5931,1806.1,1805.7,11.07581543]
[1745600894175,6.5931,1806.1,1805.7,0.57916997]
[1745600894176,6.11,1806.1,1805.7,0.57916997]
[1745600894376,6.11,1806.1,1806.0,6.11626853]
[1745600894590,6.11,1806.1,1806.0,8.0484359]
[1745600896303,6.11,1806.1,1806.0,13.0444359]
[1745600896507,6.11,1806.6,1806.4,5.53569043]
[1745600897006,3.0,1806.5,1806.3,5.53596993]
[1745600897881,3.0,1806.5,1806.4,5.53587245]
[1745600898871,3.0,1806.5,1806.3,5.535969]
[1745600899967,0.4831,1806.4,1805.9,5.53720673]
[1745600900171,6.11,1806.3,1806.0,5.53699931]
[1745600900473,6.11,1806.3,1806.0,5.53708961]
[1745600900695,6.11,1806.3,1805.9,5.53720094]
[1745600900970,0.4831,1806.2,1806.1,5.53679198]
[1745600901777,0.4831,1806.2,1806.0,5.53696418]
[1745600901982,0.4831,1806.2,1806.0,11.07384464]
[1745600902199,0.4831,1806.2,1806.1,5.53679198]
[1745600902373,6.11,1806.3,1806.1,11.07324571]
[1745600902576,6.11,1806.3,1806.1,5.5366133]
[1745600903078,6.11,1806.3,1806.1,5.53657449]
[1745600903490,6.76931,1806.3,1805.9,0.7757]
[1745600903714,6.76931,1806.3,1806.0,5.53694146]
[1745600904310,6.76931,1806.3,1806.0,11.0738269]
[1745600904605,6.76931,1806.3,1806.1,5.53667766]
[1745600904797,6.11,1806.3,1806.1,5.53667766]
[1745600904997,0.4831,1806.4,1805.5,9.0655203]
[1745600904998,0.4831,1806.1,1805.5,5.53863195]
[1745600905235,6.11,1806.0,1805.9,5.53740517]
[1745600905495,6.5931,1806.1,1805.8,5.53750768]
[1745600906616,6.5931,1806.1,1805.8,11.07499548]
[1745600906791,6.5931,1806.1,1805.9,5.53740517]
[1745600906985,6.5931,1806.1,1805.9,11.07458988]
[1745600907300,1.0,1806.0,1805.9,5.53718471]
[1745600909181,1.0,1806.0,1805.9,6.29118471]
[1745600909403,0.4831,1806.3,1806.1,5.5366005]
[1745600910313,0.4831,1806.3,1806.1,5.53659123]
[1745600910528,0.4831,1806.3,1806.2,5.53648543]
[1745600910679,0.4831,1806.3,1806.1,5.5366658]
[1745600911610,0.4831,1806.3,1806.0,11.07379578]
[1745600911981,0.4831,1806.3,1806.1,5.53678739]
[1745600912183,3.0,1806.2,1806.0,5.53688597]
[1745600912907,0.4831,1806.3,1806.0,11.07377101]
[1745600913319,0.4831,1806.3,1806.0,5.53688504]
[1745600913901,0.4831,1806.3,1806.0,5.53696197]
[1745600914214,6.5931,1806.3,1806.0,5.53696197]
[1745600914516,7.25241,1806.3,1805.9,5.53718279]
[1745600914817,7.25241,1806.3,1806.0,5.53705567]
[1745600915018,6.5931,1806.3,1806.0,5.53705567]
[1745600915224,6.5931,1806.3,1805.9,5.53718279]
[1745600915722,6.5931,1806.3,1805.9,11.07437439]
[1745600915917,6.5931,1806.3,1805.8,5.53752372]
[1745600916122,0.65931,1806.2,1805.9,5.53715035]
[1745600916418,6.5931,1806.3,1806.0,5.53701093]
[1745600916635,6.5931,1806.3,1805.9,5.53715035]
[1745600917138,1.0,1806.2,1805.9,11.07440654]
[1745600917322,1.0,1806.2,1806.1,5.53679198]
[1745600917635,1.0,1806.2,1806.0,5.53691277]
[1745600917835,1.0,1806.2,1805.9,6.11638476]
[1745600918002,1.0,1806.2,1805.9,11.0744489]
[1745600918831,1.0,1806.2,1806.0,5.53705893]
[1745600919138,1.0,1806.2,1806.1,0.51273727]
[1745600923943,1.75931,1806.2,1806.1,0.51273727]
[1745600924751,1.75931,1806.2,1805.9,5.53739831]
[1745600925044,1.0,1806.2,1806.0,0.51251513]
[1745600925546,1.0,1806.2,1806.1,0.51251513]
[1745600925745,7.11,1806.2,1806.0,0.51251513]
[1745600925948,7.11,1806.2,1806.0,6.04959817]
[1745600926151,7.11,1806.2,1806.1,6.04930711]
[1745600926306,7.11,1806.2,1806.1,7.28831721]
[1745600926736,6.11,1806.2,1806.1,7.28831721]
[1745600927247,6.11,1806.2,1806.1,6.04930711]
[1745600927425,6.11,1806.2,1806.1,0.51251513]
[1745600927621,6.11,1806.2,1806.1,6.04930711]
[1745600930652,6.11,1806.2,1806.1,0.51251513]
[1745600931855,6.5931,1806.5,1806.1,0.51251513]
[1745600932153,0.65931,1806.4,1806.1,0.51251513]
[1745600932545,0.65931,1806.4,1806.2,0.5135161]
[1745600933134,0.65931,1806.4,1806.1,5.53678677]
[1745600934056,0.65931,1806.4,1806.2,0.51354086]
[1745600934852,0.65931,1806.4,1806.3,0.51354086]
[1745600935454,0.65931,1806.4,1806.1,5.53658393]
[1745600935655,6.5931,1806.5,1806.2,0.51361399]
[1745600936021,6.5931,1806.5,1806.1,5.53658393]
[1745600936760,6.5931,1806.5,1806.1,5.53656383]
[1745600937126,3.0,1806.4,1806.2,0.51376463]
[1745600937542,3.0,1806.4,1806.3,0.51376463]
[1745600937747,3.95931,1806.4,1806.3,0.51376463]
[1745600939263,3.0,1806.4,1806.3,6.04994355]
[1745600939424,3.0,1806.4,1806.3,0.51376463]
[1745600940158,3.0,1806.4,1806.3,0.51375579]
[1745600943552,3.0,1806.4,1806.1,5.53676809]
[1745600943757,3.0,1806.4,1806.2,0.51374973]
[1745600943947,0.4831,1806.3,1806.2,0.51374973]
[1745600944153,0.4831,1806.3,1805.7,5.53788569]
[1745600944367,0.4831,1806.1,1805.8,5.53770954]
[1745600944537,0.4831,1806.1,1805.7,5.53788569]
[1745600944867,0.4831,1806.1,1805.8,0.51393988]
[1745600945035,1.14241,1806.1,1805.8,0.51393988]
[1745600945438,0.4831,1805.9,1805.1,5.53963061]
[1745600945777,0.4831,1805.7,1805.1,5.53967508]
[1745600946068,0.4831,1805.7,1805.3,5.53924432]
[1745600946226,1.200327,1805.7,1805.1,5.53962794]
[1745600946427,1.200327,1805.7,1805.1,5.96373173]
[1745600946746,1.200327,1805.7,1805.3,5.53904596]
[1745600946951,1.200327,1805.7,1805.3,6.36584596]
[1745600947270,1.200327,1805.7,1805.3,5.53904596]
[1745600947426,1.200327,1805.7,1805.2,5.53938728]
[1745600947862,3.0,1805.6,1805.1,6.36645914]
[1745600948070,6.5931,1805.5,1804.9,0.7594]
[1745600948268,6.5931,1805.5,1804.4,6.05896565]
[1745600948269,0.4831,1805.3,1804.7,6.30027961]
[1745600948428,0.4831,1805.3,1804.7,5.54087961]
[1745600948622,1.200327,1805.3,1804.7,5.54087961]
[1745600948863,0.4831,1805.2,1804.7,5.54087961]
[1745600950170,0.4831,1805.0,1804.5,5.54147522]
[1745600950325,6.5931,1805.0,1804.6,5.54137033]
[1745600951462,6.5931,1805.0,1804.7,5.54085932]
[1745600955334,6.11,1805.0,1804.7,6.17811815]
[1745600955565,6.11,1805.0,1804.8,5.54055986]
[1745600955781,6.11,1805.0,1804.8,11.08113313]
[1745600956062,6.11,1805.0,1804.8,11.08115185]
[1745600956242,6.11,1805.0,1804.9,5.54047315]
[1745600956441,6.5931,1805.2,1805.0,5.54010601]
[1745600956842,6.5931,1805.2,1805.0,5.54003923]
[1745600957051,6.5931,1805.2,1804.9,5.54036929]
[1745600957243,6.11,1805.2,1804.9,5.54029396]
[1745600957440,0.4831,1805.4,1805.1,5.53985928]
[1745600957441,6.5931,1805.4,1805.1,5.53985928]
[1745600957670,6.5931,1805.4,1804.9,5.54031153]
[1745600957965,1.0,1805.3,1804.9,5.54031153]
[1745600958162,0.4831,1805.2,1804.9,5.54031153]
[1745600958365,0.4831,1805.2,1805.0,5.54013044]
[1745600958869,0.4831,1805.2,1804.9,11.08058777]
[1745600959367,0.4831,1805.2,1805.0,5.54016233]
[1745600959867,0.4831,1805.2,1805.0,11.08017291]
[1745600960164,1.0,1805.3,1805.1,5.53980547]
[1745600960880,1.0,1805.3,1805.2,5.5395524]
[1745600961359,1.0,1805.3,1805.1,5.53968709]
[1745600961758,1.0,1805.3,1805.2,5.5395524]
[1745600964972,1.0,1805.3,1805.1,5.53964663]
[1745600965670,1.0,1805.3,1805.1,5.53960614]
[1745600965871,1.0,1805.3,1805.2,5.5395524]
[1745600968172,1.0,1805.3,1805.1,5.53960614]
[1745600968372,1.0,1805.3,1805.2,5.5395524]
[1745600970443,1.4831,1805.3,1804.9,5.54033844]
[1745600970775,1.4831,1805.3,1804.9,11.08061689]
[1745600970974,1.4831,1805.3,1804.8,5.54062644]
[1745600971180,0.4831,1805.2,1804.8,5.54075674]
[1745600971342,1.188627,1805.2,1804.8,5.54075674]
[1745600971543,1.188627,1805.2,1804.7,5.54092591]
[1745600971745,6.11,1805.1,1804.8,5.54067745]
[1745600972053,6.11,1805.1,1804.8,5.54055583]
[1745600972997,6.11,1805.1,1804.7,11.08179988]
[1745600973156,6.11,1805.1,1804.8,5.54077168]
[1745600973157,0.611,1805.0,1804.8,5.54077168]
[1745600973548,0.4831,1804.9,1804.6,5.54120466]
[1745600973863,0.4831,1804.9,1804.5,6.36570867]
[1745600974064,0.4831,1804.9,1804.6,5.54127907]
[1745600977466,0.4831,1804.9,1804.6,11.08245221]
[1745600977647,0.4831,1804.9,1804.6,5.54117314]
[1745600978577,0.4831,1804.9,1804.5,0.8242]
[1745600978578,6.5931,1804.9,1804.5,0.8242]
[1745600978779,6.11,1804.9,1804.8,5.54078014]
[1745600979586,6.11,1804.9,1804.7,5.54088773]
[1745600979883,6.11,1804.9,1804.7,11.08175847]
[1745600980077,6.11,1804.9,1804.8,5.54078014]
[1745600980849,6.11,1804.9,1804.7,5.54087074]
[1745600981184,6.11,1804.9,1804.6,11.08251246]
[1745600981347,6.721,1804.9,1804.6,5.54123194]
[1745600981674,0.4831,1804.8,1804.6,5.54120549]
[1745600981848,0.4831,1804.8,1804.5,5.54151381]
[1745600982049,0.4831,1804.8,1804.6,5.54125002]
[1745600982248,0.4831,1804.8,1804.6,5.54118728]
[1745600982767,0.4831,1804.8,1804.5,5.54150122]
[1745600983351,1.20351,1804.8,1804.5,5.54150122]
[1745600983684,1.20351,1804.8,1804.5,5.54149043]
[1745600983848,1.20351,1804.8,1804.5,11.08303862]
[1745600984179,1.20351,1804.8,1804.5,5.54149043]
[1745600984382,6.11,1804.7,1804.1,0.1]
[1745600984581,0.4831,1804.5,1804.2,5.54239691]
[1745600984978,0.4831,1804.5,1804.3,5.54212726]
[1745600986579,0.4831,1804.5,1804.3,5.54209965]
[1745600987472,0.4831,1804.5,1804.2,5.54241995]
[1745600987801,0.4831,1804.5,1804.2,5.54241713]
[1745600987981,0.4831,1804.5,1804.2,11.08492045]
[1745600988183,0.4831,1804.5,1804.3,5.54225656]
[1745600990382,6.11,1804.4,1804.1,5.64276216]
[1745600990698,6.76931,1804.4,1804.1,0.1]
[1745600990891,0.4831,1804.3,1804.1,0.1]
[1745600991092,6.5931,1804.3,1804.1,0.1]
[1745600993587,6.11,1804.5,1804.1,6.4287825]
[1745600993919,6.11,1804.5,1804.4,5.54200842]
[1745600994118,11.101,1804.7,1804.3,5.54213867]
[1745600994617,11.101,1804.7,1804.2,5.5424785]
[1745600995128,11.101,1804.7,1804.3,5.54209233]
[1745601000921,0.4831,1804.6,1804.2,5.54240319]
[1745601001628,0.4831,1804.4,1804.1,0.1]
[1745601001842,1.14241,1804.4,1804.1,0.1]
[1745601005232,6.11,1804.3,1804.1,0.1]
[1745601007310,0.4831,1804.2,1804.1,0.1]
[1745601007510,6.5931,1804.2,1804.1,0.1]
[1745601009234,11.5851,1804.2,1804.1,0.1]
[1745601009399,12.801527,1804.2,1804.1,0.1]
[1745601015136,6.11,1804.2,1804.1,0.1]
[1745601015315,6.11,1804.2,1804.1,6.40132999]
[1745601016339,0.4831,1805.1,1804.7,0.785]
[1745601016540,0.4831,1805.1,1804.7,6.32590007]
[1745601016541,6.11,1805.0,1804.7,6.32590007]
[1745601016706,7.26861,1805.0,1804.7,0.785]
[1745601018038,3.0,1804.9,1804.7,0.785]
[1745601018441,3.0,1804.9,1804.4,0.57916997]
[1745601018442,3.4831,1804.9,1804.4,6.33674665]
[1745601018620,3.4831,1804.9,1804.5,5.54169067]
[1745601019448,3.4831,1804.9,1804.5,5.53200973]
[1745601019743,9.5931,1804.9,1804.5,5.53200973]
[1745601019943,9.5931,1804.9,1804.5,5.54169334]
[1745601020308,9.5931,1804.9,1804.6,5.54136896]
[1745601020644,9.5931,1804.9,1804.5,5.54147325]
[1745601020839,10.33163741,1804.9,1804.5,5.54169915]
[1745601021538,10.33163741,1804.9,1804.5,5.54147067]
[1745601022443,9.5931,1804.9,1804.5,5.54147067]
[1745601023316,9.5931,1804.9,1804.5,11.08293988]
[1745601024154,9.5931,1804.9,1804.6,5.54138614]
[1745601024512,9.11,1804.9,1804.7,5.54093661]
[1745601024711,9.11,1804.9,1804.7,6.35725755]
[1745601027268,9.11,1804.9,1804.7,7.54710423]
[1745601027611,3.0,1804.9,1804.8,5.54078014]
[1745601028726,3.0,1804.9,1804.8,6.34148014]
[1745601028925,6.11,1805.2,1805.0,5.54004122]
[1745601029329,6.11,1805.2,1805.1,5.53985928]
[1745601029529,11.5811,1805.4,1805.1,5.53985928]
[1745601029753,11.5811,1805.4,1805.0,5.539996]
[1745601030067,11.5811,1805.4,1805.0,5.53994782]
[1745601030263,11.5811,1805.4,1805.1,5.53985892]
[1745601031461,11.5811,1805.4,1805.0,12.18806088]
[1745601031666,11.5811,1805.4,1805.1,5.53985486]
[1745601031867,0.22871372,1805.3,1805.1,5.53985486]
[1745601032166,11.5811,1805.4,1805.1,6.75864162]
[1745601032336,0.22305984,1805.2,1805.1,1.21878676]
[1745601032666,11.5811,1805.4,1805.0,0.7874]
[1745601032667,6.5931,1805.4,1805.0,0.7874]
[1745601032890,6.5931,1805.4,1805.1,6.11902925]
[1745601032891,0.22305984,1805.2,1805.1,6.11902925]
[1745601033053,6.11,1805.4,1805.3,6.32664555]
[1745601034068,11.5801,1805.7,1805.4,5.53892129]
[1745601034268,11.5801,1805.7,1805.5,5.53860192]
[1745601034565,11.5801,1805.7,1805.5,0.55386019]
[1745601034566,3.0,1805.6,1805.5,0.55386019]
[1745601035440,3.4831,1805.6,1805.2,5.53941774]
[1745601035769,3.4831,1805.6,1805.2,11.07872788]
[1745601036072,3.4831,1805.6,1805.3,5.53922569]
[1745601036382,3.4831,1805.6,1805.3,11.07805744]
[1745601036535,3.4831,1805.6,1805.3,6.64683302]
[1745601036734,3.0,1805.6,1805.4,5.5388495]
[1745601037675,3.0,1805.6,1805.3,5.53902728]
[1745601038041,3.0,1805.6,1805.4,5.53878841]
[1745601038571,3.0,1805.6,1805.4,11.07756981]
[1745601038756,3.0,1805.6,1805.4,6.2975814]
[1745601038963,3.0,1805.6,1805.4,7.48124539]
[1745601039541,3.0,1805.6,1805.4,5.5387814]
[1745601039879,3.0,1805.6,1805.4,11.07757712]
[1745601040177,3.0,1805.6,1805.5,5.53863195]
[1745601040415,3.0,1805.6,1805.5,0.8217]
[1745601040587,3.20906125,1805.6,1805.3,5.53903016]
[1745601040753,3.20906125,1805.6,1805.3,6.1750835]
[1745601040948,3.20906125,1805.6,1805.3,11.71428067]
[1745601041339,3.20906125,1805.6,1805.3,6.1750835]
[1745601041546,3.20906125,1805.6,1805.3,11.71416014]
[1745601041755,3.20906125,1805.6,1805.4,5.53891823]
[1745601041955,3.20906125,1805.6,1805.4,6.7103184]
[1745601042990,3.20906125,1805.6,1805.4,6.71019052]
[1745601043289,3.20906125,1805.6,1805.4,1.17140017]
[1745601044396,3.20906125,1805.6,1805.3,6.1750981]
[1745601044783,3.20906125,1805.6,1805.3,11.7141348]
[1745601045193,3.20906125,1805.6,1805.3,0.63607302]
[1745601045406,3.69216125,1805.6,1805.2,11.90041182]
[1745601045694,3.69216125,1805.6,1805.3,5.53924313]
[1745601046053,3.69216125,1805.6,1805.2,6.3610536]
[1745601046271,3.69216125,1805.6,1805.3,5.53924288]
[1745601046656,3.69216125,1805.6,1805.3,5.53918422]
[1745601047994,3.69216125,1805.6,1805.3,11.07822061]
[1745601048202,3.20906125,1805.6,1805.4,5.53883891]
[1745601049297,3.20906125,1805.6,1805.3,6.72908864]
[1745601052199,3.20906125,1805.6,1805.3,6.72902306]
[1745601052409,3.20906125,1805.6,1805.4,5.538929]
[1745601052905,3.20906125,1805.6,1805.3,6.72903461]
[1745601053094,3.20906125,1805.6,1805.3,5.53904255]
[1745601053289,3.20906125,1805.6,1805.4,5.53891523]
[1745601053601,3.20906125,1805.6,1805.4,5.5389357]
[1745601053781,3.20906125,1805.6,1805.3,5.53904255]
[1745601053984,3.20906125,1805.6,1805.3,11.07808311]
[1745601054178,3.20906125,1805.6,1805.4,5.53888417]
[1745601055385,3.20906125,1805.6,1805.4,5.5387615]
[1745601055584,3.20906125,1805.6,1805.4,11.07750194]
[1745601055904,3.20906125,1805.6,1805.4,5.53874044]
[1745601056103,3.20906125,1805.6,1805.5,5.53863195]
[1745601056785,3.20906125,1805.6,1805.5,7.39746752]
[1745601056975,0.20906125,1805.6,1805.5,7.39746752]
[1745601058311,6.11,1805.9,1805.6,5.53824865]
[1745601058908,6.11,1805.9,1805.5,12.93588686]
[1745601059114,6.11,1805.9,1805.6,5.53831305]
[1745601059914,6.11,1805.9,1805.6,5.53813502]
[1745601060703,6.11,1805.9,1805.5,7.39726512]
[1745601061500,3.4831,1805.8,1805.4,0.75]
[1745601061705,3.4831,1805.8,1805.2,6.28938337]
[1745601062011,3.4831,1805.8,1805.4,5.53872542]
[1745601062579,3.4831,1805.8,1805.5,5.53861137]
[1745601063685,9.5931,1805.8,1805.4,5.53872348]
[1745601064083,6.5931,1805.8,1805.4,5.53872348]
[1745601064785,7.25241,1805.8,1805.3,5.53913858]
[1745601064982,7.25241,1805.8,1805.2,6.70952674]
[1745601065186,7.25241,1805.8,1805.3,5.53923878]
[1745601065827,0.4831,1805.7,1805.0,6.36124278]
[1745601066029,6.5931,1805.6,1805.1,5.53983711]
[1745601066323,12.23341,1805.6,1805.1,5.53983711]
[1745601066705,12.23341,1805.6,1805.0,6.94060345]
[1745601066907,11.5741,1805.6,1805.3,5.53904231]
[1745601067103,11.5741,1805.6,1805.4,5.53883598]
[1745601067309,11.5741,1805.6,1805.3,5.53904231]
[1745601067508,11.5741,1805.6,1805.4,5.53887295]
[1745601068039,11.5741,1805.6,1805.3,6.31084231]
[1745601068209,11.5741,1805.6,1805.3,11.84986962]
[1745601068531,11.5741,1805.6,1805.3,11.84987555]
[1745601068730,11.5741,1805.6,1805.3,6.31082731]
[1745601069292,11.091,1805.6,1805.3,6.31082731]
[1745601069498,11.091,1805.6,1805.5,5.53863195]
[1745601069499,6.11,1805.6,1805.5,5.53863195]
[1745601070540,6.11,1805.6,1805.4,11.07758684]
[1745601070700,6.11,1805.6,1805.5,5.53863195]
[1745601071205,6.11,1805.6,1805.3,1.18501917]
[1745601071405,0.611,1805.5,1805.1,6.2957151]
[1745601071618,0.65527607,1805.5,1805.2,5.53946613]
[1745601072432,6.76527607,1805.5,1805.2,5.53946613]
[1745601072633,6.76527607,1805.5,1805.1,5.53959044]
[1745601072839,6.76527607,1805.5,1805.2,5.53941384]
[1745601073038,6.76527607,1805.5,1805.1,5.53959044]
[1745601073334,6.76527607,1805.5,1805.2,5.53949441]
[1745601073538,7.44180368,1805.5,1805.2,5.53949441]
[1745601073902,7.44180368,1805.5,1805.1,5.53974316]
[1745601074229,7.44180368,1805.5,1805.1,11.07942811]
[1745601074438,7.44180368,1805.5,1805.1,5.53968495]
[1745601074613,7.44180368,1805.5,1805.2,5.53940451]
[1745601074934,7.44180368,1805.5,1805.1,5.53968495]
[1745601075702,7.44180368,1805.5,1805.0,6.29588246]
[1745601075898,0.4831,1805.3,1804.8,6.89573725]
[1745601076105,0.17207905,1805.2,1804.9,5.54031208]
[1745601076339,0.4831,1805.3,1805.0,5.54013141]
[1745601076528,0.1708327,1805.2,1805.0,5.54013141]
[1745601076833,0.4831,1805.3,1805.0,5.54013141]
[1745601077347,6.85418037,1805.4,1805.1,5.5398375]
[1745601077559,6.11,1805.4,1805.3,5.53924555]
[1745601077907,0.4831,1805.7,1805.4,5.53887833]
[1745601077908,11.5741,1805.7,1805.4,5.53887833]
[1745601078205,1.15741,1805.6,1805.4,5.53884123]
[1745601078412,11.5741,1805.7,1805.3,5.53907814]
[1745601078604,11.5741,1805.7,1805.3,11.07809922]
[1745601078812,11.5741,1805.7,1805.3,5.53902108]
[1745601079045,11.5741,1805.7,1805.3,11.07809184]
[1745601079242,11.5741,1805.7,1805.4,5.53892296]
[1745601079438,11.091,1805.7,1805.4,5.53873276]
[1745601079738,6.11,1805.7,1805.5,11.0768706]
[1745601080245,6.11,1805.7,1805.5,5.53841665]
[1745601080945,6.11,1805.7,1805.6,5.53832521]
[1745601081331,6.11,1805.8,1805.6,5.53811435]
[1745601082527,6.11,1805.8,1805.5,5.53844121]
[1745601082727,6.11,1805.8,1805.6,5.53806239]
[1745601082928,6.11,1805.8,1805.7,5.53801849]
[1745601084862,6.11,1805.8,1805.6,5.53806239]
[1745601085040,6.11,1805.8,1805.6,11.07622813]
[1745601085241,6.11,1805.8,1805.6,5.53806239]